{"text_format":"3","workbook":"xlsx","n_sheets":1,"sheets":["Feuil1"],"not_rendered":{"defined_names":1},"read":"whole","date_system":"1900"}

{"sheet":"Feuil1","index":0,"n_rows":94,"n_cols":10,"rows_kept":94,"merged":[[0,0,0,6],[1,0,1,6],[1,9,5,9],[2,0,2,6],[3,0,3,6],[4,0,5,6],[6,0,6,9],[7,0,8,0],[7,1,8,1],[7,2,8,2],[7,3,8,3],[7,4,8,4],[7,5,8,5],[7,6,8,6],[7,7,8,7],[7,8,8,8],[7,9,8,9],[88,0,88,9],[89,0,90,0],[89,1,90,1],[89,2,90,2],[89,3,90,3],[89,4,90,4],[89,5,90,5],[89,6,90,6],[89,7,90,7],[89,9,90,9]]}
["MARCHE A PROCEDURE ADAPTEE ",{"$nulls":8},"FOURNISSEUR"]
["FOURNITURES DE PRODUITS ET MATERIELS D'ENTRETIEN",{"$nulls":8},"(raison sociale - adresse - contact)"]
[]
["LYCEE PERIER - MARCHE 2025"]
["RENSEIGNER LES CASES JAUNES UNIQUEMENT. "]
[]
["IMPERATIF: INDIQUER LES PRIX A L'UNITE DEMANDEE (IL SERA TENU COMPTE DU CONDITIONNEMENT DU FOURNISSEUR RETENU POUR LES COMMANDES)"]
["Désignation des fournitures","code fournisseur","Conditionnement","numéro de fiche technique","Quantités prévues","Unité","Prix unitaire HT","TOTAL HT","Tarif HT alternative éco label","Observations"]
[]
[]
["ALCOOL MENAGER",{"$nulls":3},78,"LITRE OU KG",null,{"$f":"E11*G11","v":{"v":0,"d":"0.00"}}]
["ANTI GUM",{"$nulls":3},10,"UNITE",null,{"$f":"E12*G12","v":{"v":0,"d":"0.00"}}]
["ANTI GRAS LINGERIE",{"$nulls":3},20,"LITRE OU KG",null,{"v":0,"d":"0.00"}]
["BALAI COCO",{"$nulls":3},20,"UNITE",null,{"v":0,"d":"0.00"}]
["BLANCHISSEUR LINGERIE",{"$nulls":3},20,"LITRE OU KG",null,{"v":0,"d":"0.00"}]
["BOBINE A DEVIDAGE CENTRAL BLEUE USAGE UNIQUE",{"$nulls":3},120,"ROULEAU",null,{"v":0,"d":"0.00"},null,"préciser la longueur du rouleau"]
["SPRAY ANTI INSECTES VOLANTS ET RAMPANTS",{"$nulls":3},5,"UNITE",null,{"v":0,"d":"0.00"}]
["BOBINE ESSUYAGE USAGE UNIQUE",{"$nulls":3},500,"ROULEAU",null,{"v":0,"d":"0.00"},null,"préciser la longueur du rouleau"]
["BOULE INOXX60G",{"$nulls":3},50,"UNITE",null,{"v":0,"d":"0.00"}]
["BROSSE DE PONT",{"$nulls":3},10,"UNITE",null,{"v":0,"d":"0.00"}]
["CARRE MICROFIBRE",{"$nulls":3},100,"UNITE",null,{"v":0,"d":"0.00"}]
["CREME A RECURER",{"$nulls":3},150,"UNITE",null,{"v":0,"d":"0.00"}]
["CALOT",{"$nulls":3},10,"boites",null,{"v":0,"d":"0.00"}]
["CHARLOTTE PLP AVEC VISIERE",{"$nulls":3},25,"100 UNITES",null,{"v":0,"d":"0.00"}]
["DECAPANT GRAFFITI ",{"$nulls":3},50,"LITRE",null,{"v":0,"d":"0.00"},null,"bidon 5L"]
["DECAPANT GRAFFITI PULV.",{"$nulls":3},20,"UNITE",null,{"v":0,"d":"0.00"}]
["DESODORISANT SANITAIRE BOMBE",{"$nulls":3},5,"LITRE OU KG",null,{"v":0,"d":"0.00"}]
["DETERGEANT DEGRAISSANT ACIDE ALIMENTAIRE",{"$nulls":3},250,"LITRE OU KG",null,{"v":0,"d":"0.00"}]
["DESINFECTANT PRIMEUR FRUITS ET LEGUMES",{"$nulls":3},50,"LITRE",null,{"v":0,"d":"0.00"}]
["DETERGEANT DEGRAISSANT DESINFECTANT ALIMENTAIRE",{"$nulls":3},250,"LITRE OU KG",null,{"v":0,"d":"0.00"}]
["DEGRAISSANT FOUR GRAISSES BRULES",{"$nulls":3},10,"LITRE",null,{"v":0,"d":"0.00"}]
["DETERGEANT DESINFECTANT SOL +ODEUR",{"$nulls":3},150,"LITRE OU KG",null,{"v":0,"d":"0.00"}]
["EPONGE GRATTANTE",{"$nulls":3},50,"UNITE",null,{"v":0,"d":"0.00"}]
["ESSUIE MAINS XL 1500",{"$nulls":3},30,"ROULEAU",null,{"v":0,"d":"0.00"}]
["FILM ALIMENTAIRE 300*45",{"$nulls":3},15,"ROULEAU",null,{"v":0,"d":"0.00"}]
["FRANGE VELCRO",{"$nulls":3},40,"UNITE",null,{"v":0,"d":"0.00"},null,"VOIR DIMENSIONS"]
["GANT NITRILE (TAILLES DIV)",{"$nulls":3},350,"100 UNITES",null,{"v":0,"d":"0.00"},null,"TAILLE S-XL"]
["GANT TYPE MAPPA PLONGE BATTERIE",{"$nulls":3},15,"UNITE",null,{"v":0,"d":"0.00"},null,"COULEUR BLEUE PLUS EPAIS"]
["GANT TYPE MAPPA MENAGE (TAILLES DIV)",{"$nulls":3},30,"PAIRE",null,{"v":0,"d":"0.00"},null," PROTECTION PRODUITS ENTRETIEN"]
["GANT PROTECTION A LA COUPURE ",{"$nulls":3},3,"PAIRE",null,{"v":0,"d":"0.00"}]
["GANT PROTECTION THERMIQUE",{"$nulls":3},4,"PAIRE ",null,{"v":0,"d":"0.00"},null,"A MANCHETTE"]
["GEL WC DETARTRANT PUISSANT",{"$nulls":3},150,"LITRE OU KG",null,{"v":0,"d":"0.00"}]
["GOBELET CARTON 25 cl",{"$nulls":3},5,"1000 UNITES",null,{"v":0,"d":"0.00"}]
["GRATTOIR DE POCHE DE SECURITE",{"$nulls":3},20,"UNITE",null,{"v":0,"d":"0.00"}]
["HOUSSE ECHELLE 141X180",{"$nulls":3},750,"UNITE",null,{"v":0,"d":"0.00"}]
["KIT VISITEUR",{"$nulls":3},300,"UNITE",null,{"v":0,"d":"0.00"}]
["LAVAGE ANTISEPTIQUE DES MAINS ALIMENTAIRE",{"$nulls":3},30,"LITRE OU KG",null,{"v":0,"d":"0.00"},null,"BACTERICIDE ET VIRUCIDE"]
["LAVAGE MAINS CREME SANS SOLVANT ALIMENTAIRE",{"$nulls":3},100,"LITRE OU KG",null,{"v":0,"d":"0.00"}]
["LAVETTE CUISINE",{"$nulls":3},1000,"UNITE",null,{"v":0,"d":"0.00"},null,"verte"]
["LINGETTE DESINFECTANTE ALIMENTAIRE",{"$nulls":3},100,"100 UNITES",null,{"v":0,"d":"0.00"}]
["LIQUIDE LAVAGE LAVE VAISSELLE CHLORE 5 Litres",{"$nulls":3},140,"LITRE OU KG",null,{"$f":"E51*G51","v":{"v":0,"d":"0.00"}}]
["LIQUIDE LAVAGE LAVE VAISSELLE CHLORE 20 Litres",{"$nulls":3},120,"LITRE OU KG",null,{"v":0,"d":"0.00"}]
["LIQUIDE VAISSELLE MANUEL DEGRAISSANT DESINFECTANT",{"$nulls":3},300,"LITRE OU KG",null,{"$f":"E53*G53","v":{"v":0,"d":"0.00"}}]
["MANCHE A BALAI BOIS VIS",{"$nulls":3},20,"UNITE",null,{"v":0,"d":"0.00"}]
["MANCHE FIBRE DE VERRE 140 CM",{"$nulls":3},20,"UNITE",null,{"v":0,"d":"0.00"}]
["MASQUES 3 PLIS ",{"$nulls":3},8000,"UNITE",null,{"v":0,"d":"0.00"}]
["NETTOYANT VITRE SURF BIDON 5 L",{"$nulls":3},20,"LITRE OU KG",null,{"v":0,"d":"0.00"}]
["NETTOYANT VITRE SURF FLC 750ML",{"$nulls":3},20,"LITRE OU KG",null,{"v":0,"d":"0.00"}]
["NETTOYANT DETARTRANT DESINFECTANT DESODORISANT  SANITAIRE ",{"$nulls":3},100,"LITRE OU KG",null,{"v":0,"d":"0.00"},null,"Privilégier bidon 5L pour recharger"]
["NETTOYANT DETARTRANT DESINFECTANT DESODORISANT  SANITAIRE (en pulvérisateur)",{"$nulls":3},40,"LITRE OU KG",null,{"v":0,"d":"0.00"}]
["DETARTRANT PLONGE BATTERIE ",{"$nulls":3},150,"LITRE",null,{"v":0,"d":"0.00"}]
["NETTOYANT ALCALIN SURPUISSANT",{"$nulls":3},60,"LITRE OU KG",null,{"v":0,"d":"0.00"}]
["PAPIER TOILETTE ROULEAUX TYPE \"GEANT\"",{"$nulls":3},600,"ROULEAU",null,{"v":0,"d":"0.00"},null,"préciser la longueur du rouleau et le nb de feuilles"]
["PRODUIT RINCAGE LAVE VAISSELLE 5 Litres",{"$nulls":3},100,"LITRE OU KG",null,{"$f":"E64*G64","v":{"v":0,"d":"0.00"}}]
["PRODUIT RINCAGE LAVE VAISSELLE 20 Litres",{"$nulls":3},100,"LITRE OU KG",null,{"v":0,"d":"0.00"}]
["PRODUITS LESSIVE LINGE",{"$nulls":3},60,"LITRE OU KG",null,{"v":0,"d":"0.00"}]
["RACLETTE MOUSSE MANUELLE  30CM",{"$nulls":3},10,"UNITE",null,{"v":0,"d":"0.00"}]
["RACLETTE MOUSSE 55CM",{"$nulls":3},20,"UNITE",null,{"v":0,"d":"0.00"}]
["SAC 10L",{"$nulls":3},100,"100 UNITES",null,{"v":0,"d":"0.00"}]
["SAC 110L",{"$nulls":3},100,"100 UNITES",null,{"v":0,"d":"0.00"}]
["SAC DECHET 160 L transparent 50µ",{"$nulls":3},100,"100 UNITES",null,{"v":0,"d":"0.00"},null,"préciser la quantité des rouleaux"]
["SAC DECHET 30 L NOIR 20µ",{"$nulls":3},200,"100 UNITES",null,{"v":0,"d":"0.00"},null,"préciser la quantité des rouleaux"]
["SAC DECHET 50 L NOIR 30µ",{"$nulls":3},50,"100 UNITES",null,{"v":0,"d":"0.00"},null,"préciser la quantité des rouleaux"]
["SAC PLASTIQUE T 130 NOIR 42µ",{"$nulls":3},160,"100 UNITES",null,{"v":0,"d":"0.00"},null,"préciser la quantité des rouleaux"]
["SACS BIODEGRADABLES TAILLE 110L",{"$nulls":3},750,"100 UNITES",null,{"v":0,"d":"0.00"}]
["SAC DECHET 240L NOIR",{"$nulls":3},50,"100 UNITES",null,{"v":0,"d":"0.00"}]
["SAC DECHET 240L TRANSPARENT",{"$nulls":3},50,"100 UNITES",null,{"v":0,"d":"0.00"}]
["SACS DECHET 200 L NOIR PEBD 65µ",{"$nulls":3},200,"100 UNITES",null,{"v":0,"d":"0.00"},null,"préciser la quantité des rouleaux"]
["SAVON DE MARSEILLE 400GR",{"$nulls":3},50,"UNITE",null,{"v":0,"d":"0.00"}]
["SAVON NOIR MOU",{"$nulls":3},20,"LITRE OU KG",null,{"v":0,"d":"0.00"}]
["SEL ADOUCISSEUR ",{"$nulls":3},250,"LITRE OU KG",null,{"v":0,"d":"0.00"}]
["SERVIETTES 21,6X33CM 1 PLI",{"$nulls":3},270,"1000 UNITES",null,{"v":0,"d":"0.00"}]
["SIPHON-CANALISAT BIOLOGIQUE ",{"$nulls":3},30,"LITRE OU KG",null,{"v":0,"d":"0.00"}]
["SOLUTION HYDROALCOOLIQUE + DISTRIBUTEUR",{"$nulls":3},50,"LITRE OU KG",null,{"v":0,"d":"0.00"},null,"VIRUCIDE BACTERICIDE ADAPTE MOBILIER ET MAINS"]
["TABLIER PLASTIQUE CUISINE EN ROULEAUX",{"$nulls":3},1000,"UNITE",null,{"v":0,"d":"0.00"}]
["VIRUCIDE DESINFECTANT SANS RINCAGE",{"$nulls":3},20,"5L",null,{"v":0,"d":"0.00"}]
["TAMPON VERT A RECURER",{"$nulls":3},10,"ROULEAU",null,{"v":0,"d":"0.00"},null,"préciser la longueur du rouleau"]
[]
["OPTION: LE DEFAUT DE CHIFFRAGE POUR LES PRODUITS CI-DESSOUS NE CONSTITUE PAS UN MOTIF D'ELIMINATION DE LA CANDIDATURE."]
["Désignation des fournitures","code fournisseur","Conditionnement","numéro de fiche technique","Quantités prévues","UNITE","Prix unitaire HT","Prix unitaire HT",null,"OBSERVATIONS"]
[]
["TABLETTE NETTOYAGE FOUR FRIMA ET RATIONAL",{"$nulls":3},5,"100 UNITES",null,{"$f":"E92*G92","v":{"v":0,"d":"0.00"}}]
["TABLETTE RINCAGE FOUR FRIMA ET RATIONAL ",{"$nulls":3},5,"100 UNITES",null,{"$f":"E93*G93","v":{"v":0,"d":"0.00"}}]
["ASPIRATEUR EAU ET POUSSIERE",{"$nulls":3},4,"UNITE",null,{"$f":"E94*G94","v":{"v":0,"d":"0.00"}}]